fUSD/lending_fUSD_20250221
["ID","MTS","AMOUNT","RATE_DAILY","PERIOD"]
[353958776,1740167462363,-151.0,0.00011287,2]
[353958777,1740167462373,-151.0,0.00011287,2]
[353958778,1740167462383,-151.0,0.00011287,2]
[353958779,1740167462393,-151.0,0.00011287,2]
[353958780,1740167462402,-151.0,0.00011287,2]
[353958781,1740167462411,-151.0,0.00011287,2]
[353958782,1740167462420,-151.0,0.00011287,2]
[353958783,1740167462430,-151.0,0.00011287,2]
[353958784,1740167462439,-151.0,0.00011287,2]
[353958785,1740167462450,-151.0,0.00011287,2]
[353958786,1740167462459,-151.0,0.00011287,2]
[353958787,1740167462469,-151.0,0.00011287,2]
[353958788,1740167462478,-500.0,0.00011287,2]
[353958789,1740167462487,-151.0,0.00011287,2]
[353958790,1740167462497,-151.0,0.00011287,2]
[353958791,1740167462507,-151.0,0.00011287,2]
[353958792,1740167462517,-151.0,0.00011287,2]
[353958793,1740167462526,-151.0,0.00011287,2]
[353958794,1740167462535,-151.0,0.00011287,2]
[353958795,1740167462544,-151.0,0.00011287,2]
[353958796,1740167462554,-151.0,0.00011287,2]
[353958797,1740167462563,-151.0,0.00011287,2]
[353958798,1740167462572,-151.0,0.00011287,2]
[353958799,1740167462581,-151.0,0.00011287,2]
[353958800,1740167462591,-151.0,0.00011287,2]
[353958801,1740167462601,-151.0,0.00011287,2]
[353958802,1740167462610,-154.942717,0.00011287,2]
[353958803,1740167462620,-500.0,0.00011287,2]
[353958804,1740167462629,-500.0,0.00011287,2]
[353958805,1740167462638,-500.0,0.00011287,2]
[353958806,1740167462647,-500.0,0.00011287,2]
[353958807,1740167462657,-500.0,0.00011287,2]
[353958808,1740167462667,-740.68,0.00011287,2]
[353958809,1740167462676,-500.0,0.00011287,2]
[353958810,1740167462686,-500.0,0.00011287,2]
[353958811,1740167462701,-905.88,0.00011287,2]
[353958812,1740167462713,-500.0,0.00011287,2]
[353958813,1740167462725,-500.0,0.00011287,2]
[353958814,1740167462734,-1098.49,0.00011287,2]
[353958815,1740167462743,-500.0,0.00011287,2]
[353958816,1740167462754,-500.0,0.00011287,2]
[353958817,1740167462774,-500.0,0.00011287,2]
[353958818,1740167462785,-857.44,0.00011287,2]
[353958819,1740167462795,-500.0,0.00011287,2]
[353958820,1740167462804,-500.0,0.00011287,2]
[353958821,1740167462814,-809.24,0.00011287,2]
[353958822,1740167462823,-500.0,0.00011287,2]
[353958823,1740167462833,-542.87,0.00011287,2]
[353958824,1740167462842,-1331.51,0.00011287,2]
[353958825,1740167462851,-754.01,0.00011287,2]
[353958826,1740167462861,-509.07050351,0.00011287,2]
[353958827,1740167462870,-500.0,0.00011287,2]
[353958828,1740167462880,-500.0,0.00011287,2]
[353958829,1740167462890,-1013.68,0.00011287,2]
[353958830,1740167462899,-953.54,0.00011287,2]
[353958831,1740167462908,-750.4,0.00011287,2]
[353958832,1740167462918,-687.42,0.00011287,2]
[353958833,1740167462927,-500.0,0.00011287,2]
[353958834,1740167462937,-738.46,0.00011287,2]
[353958835,1740167462951,-1329.27,0.00011287,2]
[353958836,1740167462960,-1176.97,0.00011287,2]
[353958837,1740167462970,-923.81,0.00011287,2]
[353958838,1740167462979,-571.1,0.00011287,2]
[353958839,1740167462989,-615.92,0.00011287,2]
[353958840,1740167462999,-500.0,0.00011287,2]
[353958841,1740167463009,-1145.31,0.00011287,2]
[353958842,1740167463019,-500.0,0.00011287,2]
[353958843,1740167463029,-500.0,0.00011287,2]
[353958844,1740167463040,-524.1,0.00011287,2]
[353958845,1740167463050,-500.0,0.00011287,2]
[353958846,1740167463060,-680.76,0.00011287,2]
[353958847,1740167463071,-799.15,0.00011287,2]
[353958848,1740167463081,-1285.44,0.00011287,2]
[353958849,1740167463091,-1586.6,0.00011287,2]
[353958850,1740167463101,-514.98,0.00011287,2]
[353958851,1740167463111,-626.99,0.00011287,2]
[353958852,1740167463122,-687.0,0.00011287,2]
[353958853,1740167463131,-763.06,0.00011287,2]
[353958854,1740167463142,-500.0,0.00011287,2]
[353958855,1740167463151,-836.24,0.00011287,2]
[353958856,1740167463161,-500.0,0.00011287,2]
[353958857,1740167463171,-741.66,0.00011287,2]
[353958858,1740167463183,-976.83,0.00011287,2]
[353958859,1740167463198,-500.0,0.00011287,2]
[353958860,1740167463209,-500.0,0.00011287,2]
[353958861,1740167463220,-500.0,0.00011287,2]
[353958862,1740167463230,-1826.83,0.00011287,2]
[353958863,1740167463241,-1648.87,0.00011287,2]
[353958864,1740167463251,-500.0,0.00011287,2]
[353958865,1740167463261,-822.42,0.00011287,2]
[353958866,1740167463271,-500.0,0.00011287,2]
[353958867,1740167463281,-1061.87,0.00011287,2]
[353958868,1740167463291,-769.98,0.00011287,2]
[353958869,1740167463301,-1122.92,0.00011287,2]
[353958870,1740167463311,-818.95,0.00011287,2]
[353958871,1740167463321,-652.38,0.00011287,2]
[353958872,1740167463331,-500.0,0.00011287,2]
[353958873,1740167463340,-569.49,0.00011287,2]
[353958874,1740167463349,-500.0,0.00011287,2]
[353958875,1740167463362,-500.0,0.00011287,2]
[353958876,1740167463378,-778.95,0.00011287,2]
[353958877,1740167463388,-500.0,0.00011287,2]
[353958878,1740167463398,-444.01282678,0.00011287,2]
[353958879,1740167463407,-500.0,0.00011287,2]
[353958880,1740167463416,-575.2,0.00011287,2]
[353958881,1740167463425,-1811.38,0.00011287,2]
[353958882,1740167463434,-982.85,0.00011287,2]
[353958883,1740167463447,-717.22,0.00011287,2]
[353958884,1740167463456,-1375.27,0.00011287,2]
[353958885,1740167463466,-893.56,0.00011287,2]
[353958886,1740167463476,-500.0,0.00011287,2]
[353958887,1740167463486,-500.0,0.00011287,2]
[353958888,1740167463497,-809.42,0.00011287,2]
[353958889,1740167463509,-1319.65,0.00011287,2]
[353958890,1740167463523,-500.0,0.00011287,2]
[353958891,1740167463533,-1036.04,0.00011287,2]
[353958892,1740167463543,-1242.28,0.00011287,2]
[353958893,1740167463553,-617.56,0.00011287,2]
[353958894,1740167463562,-500.0,0.00011287,2]
[353958895,1740167463572,-625.0,0.00011287,2]
[353958896,1740167463582,-948.12,0.00011287,2]
[353958897,1740167463591,-500.0,0.00011287,2]
[353958898,1740167463601,-500.0,0.00011287,2]
[353958899,1740167463611,-1022.36,0.00011287,2]
[353958900,1740167463621,-854.65,0.00011287,2]
[353958901,1740167463631,-500.0,0.00011287,2]
[353958902,1740167463641,-500.0,0.00011287,2]
[353958903,1740167463651,-926.96,0.00011287,2]
[353958904,1740167463661,-969.71,0.00011287,2]
[353958905,1740167463671,-500.0,0.00011287,2]
[353958906,1740167463683,-810.4,0.00011287,2]
[353958907,1740167463697,-500.0,0.00011287,2]
[353958908,1740167463711,-615.07,0.00011287,2]
[353958909,1740167463720,-500.0,0.00011287,2]
[353958910,1740167463730,-1192.04,0.00011287,2]
[353958911,1740167463742,-508.53,0.00011287,2]
[353958912,1740167463752,-672.33,0.00011287,2]
[353958913,1740167463761,-500.0,0.00011287,2]
[353958914,1740167463771,-1908.9,0.00011287,2]
[353958915,1740167463782,-500.0,0.00011287,2]
[353958916,1740167463792,-1359.44,0.00011287,2]
[353958917,1740167463802,-902.67,0.00011287,2]
[353958918,1740167463811,-1423.88,0.00011287,2]
[353958919,1740167463821,-717.68,0.00011287,2]
[353958920,1740167463830,-500.0,0.00011287,2]
[353958921,1740167463840,-1211.55,0.00011287,2]
[353958922,1740167463850,-2188.61,0.00011287,2]
[353958923,1740167463859,-1759.15,0.00011287,2]
[353958924,1740167463869,-697.64,0.00011287,2]
[353958925,1740167463878,-986.02,0.00011287,2]
[353958926,1740167463888,-1662.17,0.00011287,2]
[353958927,1740167463899,-500.0,0.00011287,2]
[353958928,1740167463909,-1297.0,0.00011287,2]
[353958929,1740167463919,-500.0,0.00011287,2]
[353958930,1740167463928,-861.11,0.00011287,2]
[353958931,1740167463939,-925.5,0.00011287,2]
[353958932,1740167463951,-1460.13,0.00011287,2]
[353958933,1740167463961,-596.42,0.00011287,2]
[353958934,1740167463971,-500.0,0.00011287,2]
[353958935,1740167463981,-500.0,0.00011287,2]
[353958936,1740167463991,-500.0,0.00011287,2]
[353958937,1740167464001,-1381.05,0.00011287,2]
[353958938,1740167464011,-500.0,0.00011287,2]
[353958939,1740167464021,-707.75,0.00011287,2]
[353958940,1740167464031,-905.98,0.00011287,2]
[353958941,1740167464041,-511.21,0.00011287,2]
[353958942,1740167464051,-500.0,0.00011287,2]
[353958943,1740167464061,-645.45,0.00011287,2]
[353958944,1740167464070,-600.11,0.00011287,2]
[353958945,1740167464080,-1101.61,0.00011287,2]
[353958946,1740167464090,-1349.02,0.00011287,2]
[353958947,1740167464100,-1210.32,0.00011287,2]
[353958948,1740167464110,-500.0,0.00011287,2]
[353958949,1740167464119,-599.64,0.00011287,2]
[353958950,1740167464129,-500.0,0.00011287,2]
[353958951,1740167464248,-794.86,0.00011287,2]
[353958952,1740167464265,-901.02,0.00011287,2]
[353958953,1740167464275,-500.0,0.00011287,2]
[353958954,1740167464285,-500.0,0.00011287,2]
[353958955,1740167464295,-856.94,0.00011287,2]
[353958956,1740167464304,-964.92,0.00011287,2]
[353958957,1740167464313,-500.0,0.00011287,2]
[353958958,1740167464323,-1325.37,0.00011287,2]
[353958959,1740167464333,-500.0,0.00011287,2]
[353958960,1740167464343,-1325.36,0.00011287,2]
[353958961,1740167464353,-500.0,0.00011287,2]
[353958962,1740167464362,-500.0,0.00011287,2]
[353958963,1740167464372,-500.0,0.00011287,2]
[353958964,1740167464382,-777.44,0.00011287,2]
[353958965,1740167464392,-1387.99,0.00011287,2]
[353958966,1740167464402,-500.0,0.00011287,2]
[353958967,1740167464412,-500.0,0.00011287,2]
[353958968,1740167464421,-500.0,0.00011287,2]
[353958969,1740167464431,-1448.95,0.00011287,2]
[353958970,1740167464440,-500.0,0.00011287,2]
[353958971,1740167464453,-500.0,0.00011287,2]
[353958972,1740167464462,-724.59,0.00011287,2]
[353958973,1740167464472,-908.66,0.00011287,2]
[353958974,1740167464483,-857.07,0.00011287,2]
[353958975,1740167464493,-379.49603194,0.00011287,2]
[353958976,1740167464503,-825.21,0.00011287,2]
[353958977,1740167464513,-874.13,0.00011287,2]
[353958978,1740167464522,-500.0,0.00011287,2]
[353958979,1740167464531,-500.0,0.00011287,2]
[353958980,1740167464541,-500.0,0.00011287,2]
[353958981,1740167464550,-1679.67,0.00011287,2]
[353958982,1740167464559,-500.0,0.00011287,2]
[353958983,1740167464568,-500.0,0.00011287,2]
[353958984,1740167464578,-500.0,0.00011287,2]
[353958985,1740167464587,-1120.09,0.00011287,2]
[353958986,1740167464597,-500.0,0.00011287,2]
[353958987,1740167464606,-684.04,0.00011287,2]
[353958988,1740167464616,-500.0,0.00011287,2]
[353958989,1740167464625,-1184.73,0.00011287,2]
[353958990,1740167464636,-934.86,0.00011287,2]
[353958991,1740167464646,-1633.04,0.00011287,2]
[353958992,1740167464655,-2742.63,0.00011287,2]
[353958993,1740167464665,-426.83652655,0.00011287,2]
[353958994,1740167464675,-167.4374265,0.00011287,2]
[353958995,1740167464684,-666.09,0.00011287,2]
[353958996,1740167464694,-814.84,0.00011287,2]
[353958997,1740167464704,-1339.09,0.00011287,2]
[353958998,1740167464716,-1290.16,0.00011287,2]
[353958999,1740167464726,-500.0,0.00011287,2]
[353959000,1740167464735,-600.21,0.00011287,2]
[353959001,1740167464745,-566.0,0.00011287,2]
[353959002,1740167464756,-1207.48,0.00011287,2]
[353959003,1740167464765,-1444.01,0.00011287,2]
[353959004,1740167464774,-500.0,0.00011287,2]
[353959005,1740167464784,-1395.85,0.00011287,2]
[353959006,1740167464796,-3450.46,0.00011287,2]
[353959007,1740167464806,-500.0,0.00011287,2]
[353959008,1740167464815,-1125.15,0.00011287,2]
[353959009,1740167464825,-500.0,0.00011287,2]
[353959010,1740167464834,-500.0,0.00011287,2]
[353959011,1740167464844,-1047.03,0.00011287,2]
[353959012,1740167464853,-537.84,0.00011287,2]
[353959013,1740167464863,-959.73,0.00011287,2]
[353959014,1740167464872,-500.0,0.00011287,2]
[353959015,1740167464882,-500.0,0.00011287,2]
[353959016,1740167464891,-786.56,0.00011287,2]
[353959017,1740167464901,-2785.17,0.00011287,2]
[353959018,1740167464910,-706.89,0.00011287,2]
[353959019,1740167464920,-611.17,0.00011287,2]
[353959020,1740167464929,-500.0,0.00011287,2]
[353959021,1740167464939,-500.0,0.00011287,2]
[353959022,1740167464951,-156.045622,0.00011287,2]
[353959023,1740167464961,-525.67,0.00011287,2]
[353959024,1740167464970,-819.59,0.00011287,2]
[353959025,1740167464979,-1421.65,0.00011287,2]
[353959026,1740167464989,-853.79,0.00011287,2]
[353959027,1740167464998,-1799.84,0.00011287,2]
[353959028,1740167465008,-500.0,0.00011287,2]
[353959029,1740167465018,-500.0,0.00011287,2]
[353959030,1740167465028,-2465.29,0.00011287,2]
[353959031,1740167465038,-3543.95,0.00011287,2]
[353959032,1740167465048,-779.77,0.00011287,2]
[353959033,1740167465058,-382.093165,0.00011287,2]
[353959034,1740167465068,-500.0,0.00011287,2]
[353959035,1740167465078,-500.0,0.00011287,2]
[353959036,1740167465087,-1897.92,0.00011287,2]
[353959037,1740167465096,-2898.71,0.00011287,2]
[353959038,1740167465106,-500.0,0.00011287,2]
[353959039,1740167465115,-749.44,0.00011287,2]
[353959040,1740167465125,-1425.64,0.00011287,2]
[353959041,1740167465135,-639.64,0.00011287,2]
[353959042,1740167465144,-1833.48,0.00011287,2]
[353959043,1740167465153,-500.0,0.00011287,2]
[353959044,1740167465163,-1283.58,0.00011287,2]
[353959045,1740167465173,-500.0,0.00011287,2]
[353959046,1740167465183,-500.0,0.00011287,2]
[353959047,1740167465195,-2412.67,0.00011287,2]
[353959048,1740167465205,-1306.89,0.00011287,2]
[353959049,1740167465215,-500.0,0.00011287,2]
[353959050,1740167465225,-500.0,0.00011287,2]
[353959051,1740167465234,-2034.14,0.00011287,2]
[353959052,1740167465244,-500.0,0.00011287,2]
[353959053,1740167465253,-2076.65,0.00011287,2]
[353959054,1740167465263,-974.92,0.00011287,2]
[353959055,1740167465272,-500.0,0.00011287,2]
[353959056,1740167465282,-1574.15,0.00011287,2]
[353959057,1740167465292,-1640.08,0.00011287,2]
[353959058,1740167465301,-500.0,0.00011287,2]
[353959059,1740167465311,-500.0,0.00011287,2]
[353959060,1740167465321,-500.0,0.00011287,2]
[353959061,1740167465330,-1453.95,0.00011287,2]
[353959062,1740167465340,-1900.25,0.00011287,2]
[353959063,1740167465349,-1683.88,0.00011287,2]
[353959064,1740167465359,-13118.68,0.00011287,2]
[353959065,1740167465368,-554.2,0.00011287,2]
[353959066,1740167465378,-511.87,0.00011287,2]
[353959067,1740167465387,-2369.7,0.00011287,2]
[353959068,1740167465397,-1211.68,0.00011287,2]
[353959069,1740167465406,-500.0,0.00011287,2]
[353959070,1740167465416,-666.84,0.00011287,2]
[353959071,1740167465426,-1282.54,0.00011287,2]
[353959072,1740167465435,-1427.28,0.00011287,2]
[353959073,1740167465446,-1696.55,0.00011287,2]
[353959074,1740167465455,-500.0,0.00011287,2]
[353959075,1740167465465,-867.08,0.00011287,2]
[353959076,1740167465475,-2568.42,0.00011287,2]
[353959077,1740167465484,-1911.79,0.00011287,2]
[353959078,1740167465494,-679.07,0.00011287,2]
[353959079,1740167465504,-621.24,0.00011287,2]
[353959080,1740167465514,-747.95,0.00011287,2]
[353959081,1740167465523,-1137.83,0.00011287,2]
[353959082,1740167465533,-2035.76,0.00011287,2]
[353959083,1740167465542,-500.0,0.00011287,2]
[353959084,1740167465551,-1256.62,0.00011287,2]
[353959085,1740167465561,-500.0,0.00011287,2]
[353959086,1740167465570,-718.0,0.00011287,2]
[353959087,1740167465579,-500.0,0.00011287,2]
[353959088,1740167465588,-901.59,0.00011287,2]
[353959089,1740167465598,-2040.15,0.00011287,2]
[353959090,1740167465607,-1477.74,0.00011287,2]
[353959091,1740167465616,-500.0,0.00011287,2]
[353959092,1740167465626,-500.0,0.00011287,2]
[353959093,1740167465635,-757.34,0.00011287,2]
[353959094,1740167465644,-2164.87,0.00011287,2]
[353959095,1740167465653,-1659.4,0.00011287,2]
[353959096,1740167465663,-1859.7,0.00011287,2]
[353959097,1740167465672,-2453.21,0.00011287,2]
[353959098,1740167465681,-561.26,0.00011287,2]
[353959099,1740167465691,-500.0,0.00011287,2]
[353959100,1740167465706,-1850.75,0.00011287,2]
[353959101,1740167465716,-500.0,0.00011287,2]
[353959102,1740167465726,-500.0,0.00011287,2]
[353959103,1740167465736,-601.04,0.00011287,2]
[353959104,1740167465747,-822.39,0.00011287,2]
[353959105,1740167465757,-734.9,0.00011287,2]
[353959106,1740167465766,-4625.02,0.00011287,2]
[353959107,1740167465776,-500.0,0.00011287,2]
[353959108,1740167465788,-1777.87,0.00011287,2]
[353959109,1740167465798,-1540.98,0.00011287,2]
[353959110,1740167465809,-366.85,0.00011287,2]
[353959111,1740167465819,-546.46,0.00011287,2]
[353959112,1740167465829,-500.0,0.00011287,2]
[353959113,1740167465838,-500.0,0.00011287,2]
[353959114,1740167465848,-500.0,0.00011287,2]
[353959115,1740167465858,-500.0,0.00011287,2]
[353959116,1740167465867,-1630.09,0.00011287,2]
[353959117,1740167465878,-500.0,0.00011287,2]
[353959118,1740167465888,-899.67,0.00011287,2]
[353959119,1740167465898,-1542.1,0.00011287,2]
[353959120,1740167465908,-547.15,0.00011287,2]
[353959121,1740167465918,-500.0,0.00011287,2]
[353959122,1740167465927,-2224.84,0.00011287,2]
[353959123,1740167465937,-943.17,0.00011287,2]
[353959124,1740167465947,-500.0,0.00011287,2]
[353959125,1740167465956,-439.15136729,0.00011287,2]
[353959126,1740167465966,-807.22,0.00011287,2]
[353959127,1740167465976,-1405.51,0.00011287,2]
[353959128,1740167465985,-1451.47,0.00011287,2]
[353959129,1740167465995,-773.56,0.00011287,2]
[353959130,1740167466005,-863.09,0.00011287,2]
[353959131,1740167466014,-1030.82,0.00011287,2]
[353959132,1740167466023,-1414.2,0.00011287,2]
[353959133,1740167466033,-2629.27,0.00011287,2]
[353959134,1740167466043,-500.0,0.00011287,2]
[353959135,1740167466053,-1956.95,0.00011287,2]
[353959136,1740167466062,-591.21,0.00011287,2]
[353959137,1740167466072,-933.0,0.00011287,2]
[353959138,1740167466081,-572.93,0.00011287,2]
[353959139,1740167466091,-500.0,0.00011287,2]
[353959140,1740167466100,-500.0,0.00011287,2]
[353959141,1740167466109,-500.0,0.00011287,2]
[353959142,1740167466119,-1071.61,0.00011287,2]
[353959143,1740167466128,-1979.81,0.00011287,2]
[353959144,1740167466137,-2806.52,0.00011287,2]
[353959145,1740167466147,-500.0,0.00011287,2]
[353959146,1740167466156,-1063.77,0.00011287,2]
[353959147,1740167466166,-500.0,0.00011287,2]
[353959148,1740167466178,-511.32,0.00011287,2]
[353959149,1740167466188,-1836.76,0.00011287,2]
[353959150,1740167466201,-500.0,0.00011287,2]
[353959151,1740167466211,-523.07,0.00011287,2]
[353959152,1740167466221,-500.0,0.00011287,2]
[353959153,1740167466230,-1918.18,0.00011287,2]
[353959154,1740167466240,-500.0,0.00011287,2]
[353959155,1740167466249,-1627.61,0.00011287,2]
[353959156,1740167466259,-500.0,0.00011287,2]
[353959157,1740167466268,-546.11,0.00011287,2]
[353959158,1740167466278,-614.6,0.00011287,2]
[353959159,1740167466287,-645.43,0.00011287,2]
[353959160,1740167466297,-1484.14,0.00011287,2]
[353959161,1740167466306,-500.0,0.00011287,2]
[353959162,1740167466384,-2455.95,0.00011287,2]
[353959163,1740167466393,-500.0,0.00011287,2]
[353959164,1740167466403,-511.74994277,0.00011287,2]
[353959165,1740167466413,-667.63,0.00011287,2]
[353959166,1740167466423,-500.0,0.00011287,2]
[353959167,1740167466432,-2372.7,0.00011287,2]
[353959168,1740167466442,-626.59,0.00011287,2]
[353959169,1740167466455,-908.08,0.00011287,2]
[353959170,1740167466464,-500.0,0.00011287,2]
[353959171,1740167466474,-500.0,0.00011287,2]
[353959172,1740167466483,-500.0,0.00011287,2]
[353959173,1740167466493,-911.32,0.00011287,2]
[353959174,1740167466502,-5546.19,0.00011287,2]
[353959175,1740167466512,-1353.06,0.00011287,2]
[353959176,1740167466521,-500.0,0.00011287,2]
[353959177,1740167466531,-1549.06,0.00011287,2]
[353959178,1740167466541,-1073.32,0.00011287,2]
[353959179,1740167466551,-1586.49,0.00011287,2]
[353959180,1740167466561,-4218.35,0.00011287,2]
[353959181,1740167466570,-1546.99,0.00011287,2]
[353959182,1740167466580,-560.32,0.00011287,2]
[353959183,1740167466589,-1702.81,0.00011287,2]
[353959184,1740167466599,-500.0,0.00011287,2]
[353959185,1740167466609,-500.0,0.00011287,2]
[353959186,1740167466618,-500.0,0.00011287,2]
[353959187,1740167466628,-1764.24,0.00011287,2]
[353959188,1740167466638,-1149.42,0.00011287,2]
[353959189,1740167466647,-735.06,0.00011287,2]
[353959190,1740167466657,-1183.25,0.00011287,2]
[353959191,1740167466667,-500.0,0.00011287,2]
[353959192,1740167466676,-636.23,0.00011287,2]
[353959193,1740167466686,-500.0,0.00011287,2]
[353959194,1740167466697,-500.0,0.00011287,2]
[353959195,1740167466709,-601.47,0.00011287,2]
[353959196,1740167466722,-500.0,0.00011287,2]
[353959197,1740167466733,-500.0,0.00011287,2]
[353959198,1740167466744,-500.0,0.00011287,2]
[353959199,1740167466754,-2271.32,0.00011287,2]
[353959200,1740167466764,-500.0,0.00011287,2]
[353959201,1740167466774,-541.45,0.00011287,2]
[353959202,1740167466785,-876.43,0.00011287,2]
[353959203,1740167466795,-2152.05,0.00011287,2]
[353959204,1740167466804,-916.64,0.00011287,2]
[353959205,1740167466813,-553.9,0.00011287,2]
[353959206,1740167466823,-1511.65,0.00011287,2]
[353959207,1740167466833,-500.0,0.00011287,2]
[353959208,1740167466843,-500.0,0.00011287,2]
[353959209,1740167466857,-3165.99,0.00011287,2]
[353959210,1740167466866,-805.35,0.00011287,2]
[353959211,1740167466876,-714.44,0.00011287,2]
[353959212,1740167466886,-500.0,0.00011287,2]
[353959213,1740167466896,-517.12,0.00011287,2]
[353959214,1740167466906,-2840.89,0.00011287,2]
[353959215,1740167466915,-500.0,0.00011287,2]
[353959216,1740167466925,-2330.01,0.00011287,2]
[353959217,1740167466935,-1123.03,0.00011287,2]
[353959218,1740167466944,-1483.29,0.00011287,2]
[353959219,1740167466957,-706.1,0.00011287,2]
[353959220,1740167466967,-500.0,0.00011287,2]
[353959221,1740167466976,-500.0,0.00011287,2]
[353959222,1740167466986,-500.0,0.00011287,2]
[353959223,1740167466996,-500.0,0.00011287,2]
[353959224,1740167467005,-1141.98,0.00011287,2]
[353959225,1740167467015,-762.79,0.00011287,2]
[353959226,1740167467024,-1041.84,0.00011287,2]
[353959227,1740167467034,-1531.08,0.00011287,2]
[353959228,1740167467044,-1281.67,0.00011287,2]
[353959229,1740167467053,-555.85,0.00011287,2]
[353959230,1740167467063,-521.28,0.00011287,2]
[353959231,1740167467072,-1097.81,0.00011287,2]
[353959232,1740167467081,-1217.74,0.00011287,2]
[353959233,1740167467091,-500.0,0.00011287,2]
[353959234,1740167467100,-311.41,0.0001133,2]
[353959235,1740167467110,-390.42746359,0.00011332,2]
[353959236,1740167467119,-1719.50181538,0.00011361,2]
[353959237,1740167467128,-1371.14030773,0.00011361,2]
[353959238,1740167467138,-1000.0,0.00011365,2]
[353959239,1740167467147,-500.0,0.00011367,2]
[353959240,1740167467156,-500.0,0.00011368,2]
[353959241,1740167467166,-500.0,0.00011368,2]
[353959242,1740167467175,-500.0,0.00011368,2]
[353959243,1740167467185,-500.0,0.00011369,2]
[353959244,1740167467198,-500.0,0.00011369,2]
[353959245,1740167467207,-575.69,0.00011369,2]
[353959246,1740167467217,-500.0,0.00011369,2]
[353959247,1740167467227,-500.0,0.00011369,2]
[353959248,1740167467237,-500.0,0.00011369,2]
[353959249,1740167467247,-500.0,0.00011369,2]
[353959250,1740167467257,-681.16,0.00011369,2]
[353959251,1740167467266,-817.79,0.00011369,2]
[353959252,1740167467276,-500.0,0.00011369,2]
[353959253,1740167467286,-151.0,0.00011369,2]
[353959254,1740167467295,-723.6,0.00011369,2]
[353959255,1740167467304,-1031.25,0.00011369,2]
[353959256,1740167467314,-687.99,0.00011369,2]
[353959257,1740167467323,-500.0,0.00011369,2]
[353959258,1740167467333,-500.0,0.00011369,2]
[353959259,1740167467342,-500.0,0.00011369,2]
[353959260,1740167467352,-500.0,0.00011369,2]
[353959261,1740167467361,-500.0,0.00011369,2]
[353959262,1740167467371,-791.84,0.00011369,2]
[353959263,1740167467381,-500.0,0.00011369,2]
[353959264,1740167467390,-500.0,0.00011369,2]
[353959265,1740167467400,-643.32,0.00011369,2]
[353959266,1740167467410,-758.78,0.00011369,2]
[353959267,1740167467419,-582.11,0.00011369,2]
[353959268,1740167467428,-500.0,0.00011369,2]
[353959269,1740167467438,-500.0,0.00011369,2]
[353959270,1740167467451,-757.52,0.00011369,2]
[353959271,1740167467460,-500.0,0.00011369,2]
[353959272,1740167467470,-500.0,0.00011369,2]
[353959273,1740167467480,-500.0,0.00011369,2]
[353959274,1740167467490,-500.0,0.00011369,2]
[353959275,1740167467499,-500.0,0.00011369,2]